Cogmind - Beta 12 X1 @@@ ROGUE MODE // 2022.06.29 @ 18:34:44 Player: Plexion Result: Destroyed by DAS Turret with DAS Cannon Performance ------------- Evolutions (1) 500 Regions Visited (5) 1000 Robots Destroyed (28) 140 Value Destroyed (906) 906 Prototype IDs (24) 480 Alien Tech Used (0) 0 Bonus (300) 300 TOTAL SCORE: 3326 Bonus ------- Aligned with FarCom 300 Cogmind --------- Core Integrity 0/400 Matter 170/300 Energy 149/150 System Corruption 0% Temperature Cool (0) Movement Core (100) Ox1 Location -9/Exiles Parts ------- > --- POWER (1) -------- Micro Nuclear Core > --- PROPULSION (2) --- (None) > --- UTILITY (4) ------ Improved Targeting Computer > --- WEAPON (2) ------- (None) > --- INVENTORY (5) ---- Small Storage Unit Weapon Cycler Peak State ------------ > --- POWER ------------ Micro Nuclear Core > --- PROPULSION ------- Light Treads Improved Treads > --- UTILITY ---------- Improved Targeting Computer Weapon Cycler Improved Medium Armor Plating Splice Drone Bay > --- WEAPON ----------- Light Assault Rifle Heavy Assault Rifle > --- INVENTORY -------- Light Treads Small Storage Unit Improved Targeting Computer Grenade Launcher Rocket Launcher [Rating: 27] Favorites ----------- Power Micro Nuclear Core Engine Light Ion Engine Power Core Micro Nuclear Core Propulsion Light Treads Treads Light Treads Wheel Wheel Utility Small Storage Unit Device Improved Heat Sink Storage Small Storage Unit Processor Improved Targeting Computer Protection Improved Medium Armor Plating Weapon Light Assault Rifle Energy Gun EM Pulse Gun Ballistic Gun Light Assault Rifle Launcher Grenade Launcher Build | -11 -10 -10 -9 -9 -9 ------- Run | Scr Mat Min Mat Min Exi Slots Evolved 2 | . . . 2 . . Power . | . . . . . . Propulsion . | . . . . . . Utility 2 | . . . 2 . . Weapon . | . . . . . . Parts Attached 43 | 6 2 8 10 8 9 Power 4 | 1 . 1 1 1 . Engine 3 | 1 . 1 1 . . Core 1 | . . . . 1 . Reactor . | . . . . . . Propulsion 10 | 2 . 4 3 . 1 Treads 7 | 2 . 1 3 . 1 Leg . | . . . . . . Wheel 3 | . . 3 . . . Hover . | . . . . . . Flight . | . . . . . . Utility 11 | 1 1 2 2 3 2 Device 6 | . 1 2 . 2 1 Storage 1 | 1 . . . . . Processor 3 | . . . 2 . 1 Hackware . | . . . . . . Protection 1 | . . . . 1 . Artifact . | . . . . . . Weapon 18 | 2 1 1 4 4 6 Energy Gun 2 | 1 . 1 . . . Energy Cannon . | . . . . . . Ballistic Gun 10 | 1 1 . 3 2 3 Ballistic Cannon . | . . . . . . Launcher 6 | . . . 1 2 3 Special Weapon . | . . . . . . Impact Weapon . | . . . . . . Slashing Weapon . | . . . . . . Piercing Weapon . | . . . . . . Special Melee Weapon . | . . . . . . Unidentified Prototypes 1 | . . 1 . . . Parts Lost 14 | . 1 2 . 1 10 Power 2 | . . 1 . 1 . Propulsion 4 | . 1 . . . 3 Utility 3 | . . . . . 3 Weapon 5 | . . 1 . . 4 Highest Loss Streak 7 | . 1 1 . 1 7 To Critical Strikes . | . . . . . . Average Slot Usage (%) 94 | . 94 99 85 97 97 Engine 5 | . 14 13 11 . . Core 6 | . . . . 9 11 Treads 20 | . 28 1 21 22 20 Wheel 2 | . . 26 . . . Device 10 | . 8 14 11 10 11 Storage 10 | . 14 14 11 11 7 Processor 9 | . . . 8 13 13 Protection 6 | . . . . 9 10 Energy Gun 2 | . 4 9 4 . . Ballistic Gun 19 | . 23 18 17 21 19 Naked Turns . | . . . . . . Heaviest Build 26 | 11 11 12 17 23 26 Greatest Support 43 | 40 40 26 43 43 43 Greatest Overweight (x) 7 | . . 1 . . 7 Average Overweight (x) . | . . . . . . Largest Inventory Capacity 8 | 8 8 8 8 8 8 Average Capacity 7 | 7 8 8 8 8 7 Most Carried 8 | 4 7 8 8 8 8 Average Carried 6 | 2 5 5 7 7 5 Final Capacity 8 | 8 8 8 8 8 5 Final Carried 8 | 4 7 7 7 8 2 Class Distribution -------------------- 90% | Mutant 9% | Scavenger-Mutant Dominant Class ---------------- Mutant | -10/Materials Mutant | -10/Mines Scavenger-Mutant | -9/Materials Mutant | -9/Mines Mutant | -9/Exiles Resources | -11 -10 -10 -9 -9 -9 ----------- Run | Scr Mat Min Mat Min Exi Matter Collected 1113 | 187 133 88 181 111 413 Remotely . | . . . . . . Salvage Created 927 | . 261 183 389 89 5 Parts 68 | . 16 11 28 13 . Haulers Intercepted . | . . . . . . Recyclers Shooed . | . . . . . . Parts Field Recycled . | . . . . . . Retrieved Matter . | . . . . . . Parts Self-Destructed . | . . . . . . Prevented . | . . . . . . Kills | -11 -10 -10 -9 -9 -9 ------- Run | Scr Mat Min Mat Min Exi Combat Hostiles Destroyed 28 | . 6 4 10 6 2 Guns 17 | . 6 4 7 . . AOE 11 | . . . 3 6 2 Classes Destroyed 6 | . 1 . 3 1 1 Tunneler 1 | . . . . 1 . Watcher 1 | . . . 1 . . Swarmer 6 | . . . 3 3 . Grunt 18 | . 6 4 5 3 . Sentry 2 | . . . 2 . . Assembled 2 | . . . . . 2 Best Kill Streak 4 | . 2 2 4 3 2 Combat Bots Only 3 | . 2 2 3 3 2 Max Kills in Single Turn 3 | . 1 1 2 3 1 Gunslinging . | . . . . . . Exploded 3 | . . . 2 3 1 Melee . | . . . . . . Uniques/NPCs Destroyed . | . . . . . . Combat | -11 -10 -10 -9 -9 -9 -------- Run | Scr Mat Min Mat Min Exi Damage Taken 2372 | . 495 243 490 141 1003 Core 573 | . 103 64 152 24 230 Absorbed by Shields . | . . . . . . Core Remaining (%) 66 | 100 . 33 . . . Volleys Fired 138 | . 32 20 37 8 41 Largest 2 | . 2 2 2 2 2 Hottest 70 | . 70 60 60 43 43 Shots Fired 224 | . 58 39 72 11 44 Gun 185 | . 58 39 70 6 12 Cannon . | . . . . . . Launcher 39 | . . . 2 5 32 Special . | . . . . . . Kinetic 160 | . 46 37 59 6 12 Thermal 12 | . 12 . . . . Explosive 39 | . . . 2 5 32 Electromagnetic 13 | . . 2 11 . . Robot Hit Streak 14 | . 12 14 7 8 12 Robot Miss Streak 5 | . 5 2 3 1 . Penetration Max . | . . . . . . Secondary Targets . | . . . . . . Shots Hit Robots 126 | . 38 27 43 9 9 Core Hits 69 | . 16 13 22 8 10 Critical Kills . | . . . . . . Critical Parts Destroyed . | . . . . . . Critical Strikes . | . . . . . . Melee Attacks . | . . . . . . Impact . | . . . . . . Slashing . | . . . . . . Piercing . | . . . . . . Sneak Attacks . | . . . . . . Combat Hostiles . | . . . . . . Follow-up Attacks . | . . . . . . Damage Inflicted 2179 | . 353 207 576 530 513 Guns 1145 | . 353 207 431 66 88 Cannons . | . . . . . . Explosions 1032 | . . . 145 464 423 Melee . | . . . . . . Ramming 2 | . . . . . 2 Kinetic 915 | . 230 207 324 66 88 Thermal 181 | . 123 . 58 . . Explosive 974 | . . . 87 464 423 Electromagnetic 107 | . . . 107 . . Impact . | . . . . . . Slashing . | . . . . . . Piercing . | . . . . . . Highest Corruption 2 | . . . 2 2 . Average Corruption 1 | . . . 2 1 . Corruption Purged 2 | . . . . 2 . Corruption Blocked . | . . . . . . Effects 6 | . . . 3 3 . Message Errors 1 | . . . . 1 . Heat Flow Errors 1 | . . . 1 . . Energy Discharges 1 | . . . . 1 . Data Loss (minor) 2 | . . . 2 . . Data Loss (major) 1 | . . . . 1 . Overload Shots . | . . . . . . Overflow Damage 31 | . . . . 31 . Projectiles . | . . . . . . Explosions 31 | . . . . 31 . Melee . | . . . . . . Knockbacks . | . . . . . . Impact . | . . . . . . Kinetic . | . . . . . . Secondary . | . . . . . . Self-Inflicted Damage 62 | . . . 62 . . Shots 2 | . . . 2 . . Rammed 3 | . . . . . 3 Targets Rammed 3 | . . . . . 3 Kicked . | . . . . . . Crushed . | . . . . . . Highest Temperature 294 | . 294 5 232 4 4 Average Temperature 119 | . 149 3 113 3 3 Received Heat Transfer 648 | . 273 138 177 60 . Effects 2 | . 2 . . . . Interference 2 | . 2 . . . . Siege Activations . | . . . . . . Robots Corrupted . | . . . . . . Combat Hostiles . | . . . . . . Parts Fried 1 | . . . 1 . . Impact Corruptions . | . . . . . . Robots Melted . | . . . . . . Combat Hostiles . | . . . . . . Parts Melted 1 | . 1 . . . . Heat Transferred 420 | . 370 . 50 . . Parts Sabotaged . | . . . . . . Parts Stolen . | . . . . . . Parts Stripped . | . . . . . . Power Chain Reactions 2 | . . . 2 . . Missiles Intercepted . | . . . . . . Alert | -11 -10 -10 -9 -9 -9 ------- Run | Scr Mat Min Mat Min Exi Peak Influence 378 | . 196 80 378 300 . Initial 101 | . . . 31 101 . Average 131 | . 89 63 185 154 . Maximum Alert Level 1 | . . . 1 1 . Low Security (%) 85 | 100 100 100 56 92 . Level 1 14 | . . . 43 7 . Level 2 . | . . . . . . Level 3 . | . . . . . . Level 4 . | . . . . . . Level 5 . | . . . . . . High Security . | . . . . . . Max Security . | . . . . . . Squads Dispatched 5 | . 4 . . 1 . Investigation 3 | . 2 . . 1 . Extermination . | . . . . . . Reinforcement 2 | . 2 . . . . Assault . | . . . . . . Garrison . | . . . . . . Intercept . | . . . . . . Searches Triggered . | . . . . . . Construction Impeded . | . . . . . . Haulers Reinforced . | . . . . . . Active Scanning Responses . | . . . . . . Cargo Convoy Interrupts . | . . . . . . Stealth | -11 -10 -10 -9 -9 -9 --------- Run | Scr Mat Min Mat Min Exi Distress Signals 1 | . 1 . . . . Communications Jammed . | . . . . . . Distress Signals . | . . . . . . Times Spotted 62 | . 12 4 17 7 22 Peak Tracking Total 9 | . 4 2 3 4 9 Tactical Retreats 6 | . . . . . 6 Traps | -11 -10 -10 -9 -9 -9 ------- Run | Scr Mat Min Mat Min Exi Traps Triggered 2 | . 1 . 1 . . Indirectly . | . . . . . . Trap Hack Attempts . | . . . . . . Triggered . | . . . . . . Disarmed . | . . . . . . Reprogrammed . | . . . . . . Reused 3 | . . . . . 3 Traps Extracted . | . . . . . . Installed 3 | . . . . . 3 Triggered 2 | . . . 2 . . Most Traps Carried 3 | . . . . 3 3 Exploded 3 | . . . . . 3 Machines | -11 -10 -10 -9 -9 -9 ---------- Run | Scr Mat Min Mat Min Exi Machines Disabled 5 | . . . 2 1 2 Max in Single Turn 1 | . . . 1 1 1 Machines Sabotaged . | . . . . . . Garrisons Compromised . | . . . . . . Overloaded Fab Kills . | . . . . . . Hacking | -11 -10 -10 -9 -9 -9 --------- Run | Scr Mat Min Mat Min Exi Machines Accessed 7 | . 3 1 . 1 2 Terminals 2 | . 2 . . . . Fabricators . | . . . . . . Repair Stations . | . . . . . . Recycling Units 1 | . 1 . . . . Scanalyzers . | . . . . . . Garrison Access . | . . . . . . Total Hacks 9 | . 5 1 . 1 2 Successful 5 | . 1 1 . 1 2 Failed 4 | . 4 . . . . Catastrophic 2 | . 2 . . . . Database Lockouts . | . . . . . . Manual 6 | . 5 . . . 1 Terminals 4 | . 4 . . . . Fabricators . | . . . . . . Repair Stations . | . . . . . . Recycling Units 1 | . 1 . . . . Scanalyzers . | . . . . . . Garrison Access . | . . . . . . Terminal Hacks 4 | . . 1 . 1 2 Record 1 | . . . . . 1 Open Door 2 | . . 1 . 1 . EX-Prototype ID Bank 1 | . . . . . 1 Fabricator Hacks . | . . . . . . Repair Station Hacks . | . . . . . . Recycling Unit Hacks . | . . . . . . Scanalyzer . | . . . . . . Garrison Access Hacks . | . . . . . . Unauthorized Hacks 1 | . 1 . . . . Terminals . | . . . . . . Fabricators . | . . . . . . Repair Stations . | . . . . . . Recycling Units 1 | . 1 . . . . Mask 1 | . 1 . . . . Scanalyzers . | . . . . . . Garrison Access . | . . . . . . Data Cores Recovered . | . . . . . . Used . | . . . . . . Hacking Detections 2 | . 2 . . . . Full Trace Events 1 | . 1 . . . . Feedback Events . | . . . . . . Feedback Blocked . | . . . . . . Robot Schematics Acquired . | . . . . . . Robots Built . | . . . . . . Authchips . | . . . . . . Time . | . . . . . . Total Robot Build Rating . | . . . . . . Part Schematics Acquired . | . . . . . . Parts Built . | . . . . . . Authchips . | . . . . . . Time . | . . . . . . Total Part Build Rating . | . . . . . . Parts Repaired . | . . . . . . Time . | . . . . . . Parts Recycled . | . . . . . . Recycled Matter . | . . . . . . Retrieved Matter . | . . . . . . Retrieved Components . | . . . . . . Parts Scanalyzed . | . . . . . . Part Schematics Acquired . | . . . . . . Parts Damaged . | . . . . . . Bothacking | -11 -10 -10 -9 -9 -9 ------------ Run | Scr Mat Min Mat Min Exi Used RIF Installer . | . . . . . . Robots Hacked . | . . . . . . Non-combat . | . . . . . . Combat . | . . . . . . Robot Hacks Applied . | . . . . . . Relay Couplers Released . | . . . . . . Fabnet Peak Effective % . | . . . . . . Robots Rewired . | . . . . . . Allies Hacked . | . . . . . . Hacks Repelled . | . . . . . . Allies | -11 -10 -10 -9 -9 -9 -------- Run | Scr Mat Min Mat Min Exi Total Allies . | . . . . . . Largest Group . | . . . . . . Highest-Rated Group . | . . . . . . Highest-Rated Ally . | . . . . . . Total Orders 3 | . . . . . 3 STAY 3 | . . . . . 3 Ally Attacks 1 | . . . . . 1 Total Damage 6 | . . . . . 6 Kills . | . . . . . . Allies Corrupted . | . . . . . . Allies Melted . | . . . . . . Intel | -11 -10 -10 -9 -9 -9 ------- Run | Scr Mat Min Mat Min Exi Robot Analysis Total . | . . . . . . Derelict Logs Recovered 2 | . . 1 . 1 . Drone Launches 1 | . . . . . 1 Drone Recoveries 1 | . . . . . 1 Exploration | -11 -10 -10 -9 -9 -9 ------------- Run | Scr Mat Min Mat Min Exi Turns Passed 3618 | 82 434 359 646 808 1289 Spaces Moved 2029 | 44 211 304 326 481 663 Core 3 | 1 . . . . 2 Treads 1714 | 43 211 . 318 481 661 Legs . | . . . . . . Wheels 312 | . . 304 8 . . Hover . | . . . . . . Flight . | . . . . . . Fastest Speed 50 | 50 160 90 90 160 100 Average Speed 151 | 157 160 90 158 160 166 Slowest Speed 400 | 160 160 95 160 160 400 Overloaded Moves . | . . . . . . Propulsion Burnouts . | . . . . . . Robots Hopped . | . . . . . . Cave-ins Triggered . | . . . . . . Exploration Rate (%) 49 | 3 37 69 34 85 69 Regions Visited 5 Branch Regions 3 Pre-discovered Areas 2 | . . . . 1 1 Known Exits Taken 1 | . . . 1 . . Unknown Exits Taken 4 | 1 1 1 . 1 . Scrap Searched 4 | . . 2 . 2 . Spaces Dug . | . . . . . . Terrain Destroyed 76 | . . . 22 29 25 Melee . | . . . . . . Projectile . | . . . . . . AOE 76 | . . . 22 29 25 Terrain Rammed . | . . . . . . Walls Destroyed . | . . . . . . Machines Disabled . | . . . . . . Actions | -11 -10 -10 -9 -9 -9 --------- Run | Scr Mat Min Mat Min Exi Total 2380 | 54 258 355 393 509 811 Wait 111 | . 11 20 12 2 66 Move 2024 | 43 210 303 325 480 663 Hop . | . . . . . . Pick Up 28 | 5 3 2 2 5 11 Fast Attach 12 | 5 1 1 3 2 . Attach 10 | 1 . 4 . 1 4 Detach 6 | . . 2 1 2 1 Swap 21 | . 1 3 7 5 5 Drop 24 | . . . 6 4 14 Fire 138 | . 32 20 37 8 41 Melee . | . . . . . . Ram . | . . . . . . Kick . | . . . . . . Crush 3 | . . . . . 3 Escape Stasis . | . . . . . . Rewire . | . . . . . . Trap 3 | . . . . . 3 Miscellaneous . | . . . . . . Route ------- -11/Scrapyard -10/Materials (discovered 2 exits: [*Mat] / *Min) -10/Mines (discovered 2 exits: [*Mat x2]) -9/Materials -9/Mines (discovered 3 exits: *Mat x2 / *Exi) -9/Exiles History --------- Turn | Location | Event 49 | -11/Scrapyard | Discovered new exit (range 15) 83 | -11/Scrapyard | Entered Materials 318 | -10/Materials | Build established: Mutant 357 | -10/Materials | Discovered new exit (range 9) 493 | -10/Materials | Discovered new exit (range 16) 517 | -10/Materials | Entered Mines 554 | -10/Mines | Core integrity fell below 50% 673 | -10/Mines | Learned 2 Materials zone layouts 740 | -10/Mines | Discovered new exit (range 10) 785 | -10/Mines | Received a Rocket Launcher from a helpful Derelict 825 | -10/Mines | Found the Drone Emporium 829 | -10/Mines | Found Prototype Device 829 | -10/Mines | Identified Splice Drone Bay 850 | -10/Mines | Discovered new exit (range 11) 876 | -10/Mines | Entered Materials 876 | -9/Materials | Evolved 2 slots: Utility x2 877 | -9/Materials | Identified exit to Mines 1479 | -9/Materials | Build established: Scavenger-Mutant 1522 | -9/Materials | Entered Mines 1653 | -9/Mines | Met a Derelict shopkeep closing up shop 1715 | -9/Mines | Discovered new exit (range 9) 1748 | -9/Mines | Learned location of Storage (-7) 1828 | -9/Mines | Build established: Mutant 2016 | -9/Mines | Identified exit to Materials 2043 | -9/Mines | Found a hidden stash of uninstalled traps 2323 | -9/Mines | Deemed a non-threat by the Exiles lab entrance 2323 | -9/Mines | Discovered new exit (range 5) 2330 | -9/Mines | Entered Exiles 2370 | -9/Exiles | Met 8R-AWN 2402 | -9/Exiles | Met EX-HEX 2466 | -9/Exiles | Met EX-DEC 2493 | -9/Exiles | Learned location of Zion (-6) 2525 | -9/Exiles | Met EX-BIN 2548 | -9/Exiles | Aligned with FarCom system 2549 | -9/Exiles | Given EX-Vault access code 2591 | -9/Exiles | Opened EX-Vault 2628 | -9/Exiles | Warned to stay clear of 0b10 Research branches 3207 | -9/Exiles | Attacked by the Exiles 3464 | -9/Exiles | Lost 3 parts (2n1w) 3610 | -9/Exiles | Core integrity fell below 50% 3616 | -9/Exiles | Core integrity fell below 20% 3619 | -9/Exiles | Destroyed by DAS Turret with DAS Cannon Last Messages --------------- 03377_ as-46310 destroyed. 03387_ Acquired 7 matter. 03392_ The unstable cave ceiling collapses. 03421_ Rocket Launcher destroyed. 03425_ Imp. Treads destroyed. 03433_ Lgt. Treads destroyed. 03433_ Knocked back. 03434_ Acquired 16 matter. 03497_ Acquired 1 matter. 03513_ Acquired 8 matter. 03540_ Extracted 56 matter. 03542_ Extracted 110 matter. 03596_ Grenade Launcher destroyed. 03598_ Splice Drone Bay destroyed. 03598_ Imp. Medium Armor Plating destroyed. 03598_ Imp. Targeting Computer destroyed. 03598_ Critical hit (Blast). 03607_ Hvy. Assault Rifle destroyed. 03617_ Lgt. Assault Rifle destroyed. 03617_ Lgt. Treads destroyed. Map ----- +----------------------------------------------------+ | ?????????????????????????????????????????????# | | ????????????????????????????????????????????## | | ????????????#######?????????????????????????#" | | ######??????#!!! "#?????????????????????????#" | | #""##?????# "#?????????????????????????#" | | #?????# "#?????????????????????????#" | | ##???## ""#?????????????#???????????#" | | #####" ""#???????????? """????????#" | | ##" ""#????????????" """????????## | | #"" #??????????????" ?????????# | | ## #?????????????"" ?????????#" | | ?#### ##????????????"" "#????????#" | | ????### "####????????? ""?????????#" | | ######" ;;;#####??????" "?????????##" | | !!""""" ;# #####??# #????????##"" | | !"###"" g # #### ###?######"" | | !"#?##" ##X# #"###""""""" | | !!##??#" % """""" " "" | | """"""###???#"# % "" """ " | | ########?????#### % " " | | ????????????????### | | ??????????????????#" % | | ??????????????????#### % | | ?????????????????????## % | | ?????????????????????# | | ?????????????????????### @ """""" | | ?????????????????????## ######"" | | ?????????????????????# ""##????### | | ?????????????????????# """##???????? | | ????????????????????# """##????????? | | ????????????????????## ""#?????????? | | ?????????????????????# ########??## | | ?????????????????????#" ## ####" | | ?????????????????????#" t """" | | ?????????????????????## | | ??????????????????????#" | | ??????????????????????## | | ???????????????????????#" " | | ???????????????????????#"""" ""## # | | ???????????????????????#"" ""#### # | | ????????????????????????? """"##??# # | | ????????????????????????""" """#??## # | | ????????????????????????? ""##??#! | | ?????????????????????????"" """##???#" | | ??????????????????????????""" #?????#" | | ????????????????????????????""" #??????#!!"" | | ?????????????????????????????? ???????##### | | ?????????????????????????????#### ????????????? | | ????????????????????????????????## ????????????? | | ??????????????????????????????????? ?????????????? | +----------------------------------------------------+ Best States ------------- Heat Dissipation 42 Energy Generation 15 Energy Capacity 265 Matter Stores 300 Matter Capacity 300 Sight Range 18 Terrain Scan Density 10 Armor Coverage 225 Weapon Cycling 15 Evasion (%) 42 Targeting Accuracy 12 Recoil Reduction 2 Item Schematics ----------------- None Robot Schematics ------------------ None Fabricated ------------ Nothing Alien Tech Used ----------------- None Achievements -------------- None Challenges ------------ None Game ------ Seed VortexCatalystMallet Manual? 0 Play Time 00:20:54 Cumulative 242.0 hours Start 2022.06.29 @ 18:08:24 End 2022.06.29 @ 18:34:44 Sessions 1 Manual Loads 0 Difficulty Rogue Special Mode None Game No. 340 Rogue 253 Adventurer 87 Explorer 0 Win Type - Total 5 Types 3/0/1/1/0/0/0/0/0 Lore% 69 Gallery% 77 Achievement% 67 Wizard Run 0 Options --------- ASCII 0 Keyboard 1 Movement Numpad Keybinds 0 Fullscreen 1 Font 18/Smallcaps Map View 76x50 Tactical HUD 1 Map Filters NONE Filters NONE Steam 1 RUN: 7b986c4d-d28c-458a-ab12-442d7f18d217